bitfinex-derivatives/quotes_SOLF0:USTF0_20241203
["timestamp","ask_amount","ask_price","bid_price","bid_amount"]
[1733226213680,14.68695141,225.39,225.28,2.2188]
[1733226214381,14.68695141,225.39,225.26,2.219]
[1733226214587,14.68695141,225.39,225.25,2.18]
[1733226215988,48.40007491,225.52,225.26,12.50695141]
[1733226216185,12.50695141,225.43,225.26,12.50695141]
[1733226216382,12.50695141,225.43,225.29,12.50695141]
[1733226216588,12.50695141,225.43,225.3,6.2502]
[1733226218085,12.50695141,225.43,225.34,2.2183]
[1733226218683,12.50695141,225.4,225.3,6.2502]
[1733226218879,12.50695141,225.37,225.3,2.7324]
[1733226219084,12.50695141,225.37,225.28,2.18]
[1733226219387,12.50695141,225.34,225.28,2.18]
[1733226221191,12.50695141,225.34,225.2,12.50695141]
[1733226221394,12.50695141,225.34,225.21,2.18]
[1733226221793,2.18,225.33,225.21,2.18]
[1733226222094,2.18,225.33,225.23,2.2193]
[1733226223895,2.18,225.33,225.24,2.2192]
[1733226224090,2.18,225.33,225.22,2.18]
[1733226224498,2.18,225.33,225.24,2.2192]
[1733226224798,2.18,225.33,225.22,2.18]
[1733226225996,2.18,225.33,225.25,2.2191]
[1733226228498,2.18,225.33,225.24,2.2192]
[1733226229396,2.18,225.33,225.22,2.18]
[1733226229598,2.18,225.33,225.25,2.2191]
[1733226231403,2.18,225.33,225.22,2.18]
[1733226231404,2.18,225.33,225.23,2.2193]
[1733226232400,2.18,225.33,225.22,4.3994]
[1733226232900,2.18,225.33,225.22,2.18]
[1733226233099,2.18,225.33,225.23,2.2193]
[1733226234496,2.18,225.33,225.24,2.2192]
[1733226235702,7.99753974,225.31,225.24,2.2192]
[1733226236203,7.99753974,225.29,225.24,2.2192]
[1733226237403,7.99753974,225.3,225.24,2.2192]
[1733226242306,7.99753974,225.3,225.22,2.18]
[1733226242507,7.99753974,225.3,225.23,2.2193]
[1733226242706,7.99753974,225.3,225.19,61.73975066]
[1733226242707,7.99753974,225.28,225.19,69.7372904]
[1733226243008,7.99753974,225.26,225.19,63.91975066]
[1733226243201,7.99753974,225.26,225.2,2.2196]
[1733226243509,7.99753974,225.26,225.19,63.91975066]
[1733226243709,7.99753974,225.26,225.2,7.99753974]
[1733226244209,7.99753974,225.28,225.2,7.99753974]
[1733226246005,7.99753974,225.28,225.22,2.2194]
[1733226246209,7.99753974,225.26,225.19,63.91975066]
[1733226247007,7.99753974,225.26,225.19,61.73975066]
[1733226247312,7.99753974,225.24,225.15,7.99753974]
[1733226247711,7.99753974,225.24,225.17,7.99753974]
[1733226248213,7.99753974,225.24,225.19,2.2195]
[1733226248516,7.99753974,225.24,225.17,7.99753974]
[1733226249015,7.99753974,225.24,225.19,2.2195]
[1733226249313,2.18,225.27,225.19,7.99753974]
[1733226249314,7.99753974,225.26,225.19,7.99753974]
[1733226249518,7.99753974,225.26,225.21,2.2192]
[1733226250318,7.99753974,225.28,225.23,2.2191]
[1733226250518,30.60033472,225.41,225.25,7.99753974]
[1733226250818,7.99753974,225.33,225.28,2.2186]
[1733226251214,7.99753974,225.33,225.27,7.99753974]
[1733226251418,7.99753974,225.33,225.28,2.2186]
[1733226251617,7.99753974,225.33,225.27,7.99753974]
[1733226251918,30.60033472,225.41,225.32,2.2182]
[1733226252217,7.99753974,225.38,225.29,10.17753974]
[1733226252917,7.99753974,225.38,225.31,2.2183]
[1733226255022,32.78033472,225.41,225.31,2.2183]
[1733226255222,7.99753974,225.38,225.31,2.2183]
[1733226255422,7.99753974,225.38,225.33,2.2181]
[1733226255621,30.60033472,225.41,225.34,2.18]
[1733226255822,7.99753974,225.44,225.37,7.99753974]
[1733226256523,7.99753974,225.46,225.39,7.99753974]
[1733226256720,7.99753974,225.46,225.4,2.18]
[1733226257018,7.99753974,225.44,225.4,2.18]
[1733226262919,2.18,225.51,225.4,2.18]
[1733226263121,7.99753974,225.44,225.4,2.18]
[1733226263829,2.18,225.51,225.4,2.18]
[1733226264127,7.99753974,225.44,225.4,2.18]
[1733226264624,2.18,225.51,225.4,2.18]
[1733226264625,7.99753974,225.47,225.4,2.18]
[1733226265021,47.813023,225.64,225.42,2.2172]
[1733226265323,2.18,225.63,225.43,7.99753974]
[1733226265526,7.99753974,225.5,225.43,7.99753974]
[1733226265720,2.18,225.55,225.43,7.99753974]
[1733226265921,7.99753974,225.5,225.43,7.99753974]
[1733226266924,7.99753974,225.5,225.44,2.217]
[1733226267328,7.99753974,225.48,225.44,2.217]
[1733226267931,7.99753974,225.48,225.41,7.99753974]
[1733226267932,7.99753974,225.48,225.43,2.2172]
[1733226268730,7.99753974,225.46,225.4,2.18]
[1733226268935,7.99753974,225.44,225.39,2.18]
[1733226269536,7.99753974,225.44,225.37,10.21523974]
[1733226269832,7.99753974,225.44,225.37,12.39523974]
[1733226271137,7.99753974,225.44,225.37,4.3977]
[1733226271835,2.18,225.49,225.39,2.2175]
[1733226272029,7.99753974,225.45,225.39,2.2175]
[1733226272429,7.99753974,225.45,225.4,2.2174]
[1733226272634,7.99753974,225.47,225.39,7.99753974]
[1733226273334,2.18,225.53,225.43,7.99753974]
[1733226273534,7.99753974,225.5,225.43,10.17753974]
[1733226274337,47.813023,225.64,225.47,7.99753974]
[1733226274637,47.813023,225.64,225.49,7.99753974]
[1733226274638,7.99753974,225.57,225.49,7.99753974]
[1733226274833,7.99753974,225.57,225.5,2.18]
[1733226275633,12.46689179,225.61,225.5,2.18]
[1733226276139,12.46689179,225.57,225.44,3.9126]
[1733226276338,12.46689179,225.57,225.45,2.18]
[1733226276538,12.46689179,225.57,225.45,4.3969]
[1733226276941,2.18,225.58,225.45,2.18]
[1733226276942,12.46689179,225.54,225.45,2.18]
[1733226277135,12.46689179,225.54,225.44,2.6183]
[1733226280244,12.46689179,225.54,225.45,2.217]
[1733226280450,12.46689179,225.54,225.44,2.6183]
[1733226280938,12.46689179,225.51,225.44,1.308]
[1733226281137,12.46689179,225.51,225.37,12.46689179]
[1733226281334,12.46689179,225.51,225.41,2.18]
[1733226281536,12.46689179,225.51,225.41,4.3973]
[1733226284448,12.46689179,225.51,225.41,2.18]
[1733226285938,12.46689179,225.51,225.42,2.2172]
[1733226286440,12.46689179,225.51,225.42,4.3972]
[1733226286744,12.46689179,225.51,225.42,2.18]
[1733226287134,2.18,225.53,225.42,2.18]
[1733226287544,12.46689179,225.51,225.42,2.18]
[1733226292539,2.18,225.53,225.42,2.18]
[1733226293043,12.46689179,225.54,225.46,2.2168]
[1733226293647,2.18,225.57,225.46,2.2168]
[1733226293949,2.18,225.58,225.47,2.18]
[1733226294147,12.46689179,225.59,225.47,2.18]
[1733226294343,12.46689179,225.59,225.5,2.2164]
[1733226295047,12.46689179,225.59,225.49,2.2166]
[1733226295948,12.46689179,225.59,225.47,2.18]
[1733226295949,12.46689179,225.59,225.5,2.2164]
[1733226297144,12.46689179,225.59,225.49,2.2166]
[1733226297342,12.46689179,225.59,225.47,4.7954]
[1733226297544,12.46689179,225.56,225.45,2.18]
[1733226297745,32.75159817,225.61,225.44,2.18]
[1733226297746,12.46689179,225.53,225.44,2.18]
[1733226299049,12.46689179,225.53,225.44,4.3971]
[1733226301047,12.46689179,225.53,225.41,2.6154]
[1733226301350,12.46689179,225.53,225.42,2.18]
[1733226301554,12.46689179,225.53,225.42,4.3973]
[1733226301849,14.64689179,225.56,225.42,14.64689179]
[1733226302149,14.64689179,225.56,225.44,2.2171]
[1733226302355,12.46689179,225.53,225.42,2.18]
[1733226302549,14.64689179,225.56,225.42,14.64689179]
[1733226302854,14.64689179,225.56,225.45,2.2171]
[1733226303353,14.64689179,225.56,225.44,2.2172]
[1733226304346,14.64689179,225.56,225.43,2.2173]
[1733226304755,14.64689179,225.56,225.44,2.18]
[1733226304954,12.46689179,225.53,225.44,2.18]
[1733226305358,12.46689179,225.53,225.42,2.18]
[1733226307652,12.46689179,225.53,225.41,4.8328]
[1733226307653,12.46689179,225.53,225.41,4.7954]
[1733226307857,12.46689179,225.47,225.38,57.67356024]
[1733226308058,12.46689179,225.47,225.38,59.85356024]
[1733226311658,7.98861067,225.41,225.38,57.67356024]
[1733226311860,7.98861067,225.41,225.34,11.45521067]
[1733226312967,2.18,225.49,225.36,7.98861067]
[1733226312968,7.98861067,225.43,225.36,7.98861067]
[1733226313364,7.98861067,225.43,225.34,5.6847]
[1733226313565,7.98861067,225.43,225.36,7.98861067]
[1733226315269,7.98861067,225.41,225.34,11.45521067]
[1733226317573,7.98861067,225.39,225.3,10.20711067]
[1733226317778,7.98861067,225.37,225.31,2.18]
[1733226318573,7.98861067,225.39,225.31,2.18]
[1733226319878,7.98861067,225.39,225.32,7.98861067]
[1733226320078,7.98861067,225.39,225.31,2.18]
[1733226320282,7.98861067,225.39,225.32,7.98861067]
[1733226321379,7.98861067,225.39,225.31,2.18]
[1733226323076,7.98861067,225.33,225.23,4.0054]
[1733226323379,7.98861067,225.31,225.23,4.0054]
[1733226324279,7.98861067,225.27,225.17,2.18]
[1733226324478,7.98861067,225.27,225.19,7.98861067]
[1733226324881,7.98861067,225.3,225.21,7.98861067]
[1733226325679,2.18,225.33,225.19,12.49712014]
[1733226326080,2.18,225.33,225.2,1.3025]
[1733226327089,2.18,225.33,225.23,2.2192]
[1733226331185,30.60731675,225.34,225.22,14.67712014]
[1733226331486,32.78731675,225.34,225.22,14.67712014]
[1733226331683,30.60731675,225.34,225.22,14.67712014]
[1733226332487,30.60731675,225.34,225.26,2.2189]
[1733226332687,30.60731675,225.34,225.22,14.67712014]
[1733226333085,30.60731675,225.34,225.28,2.2187]
[1733226333287,30.60731675,225.34,225.27,2.18]
[1733226333485,14.67712014,225.39,225.26,2.7463]
[1733226333686,14.67712014,225.39,225.27,2.18]
[1733226333987,14.67712014,225.39,225.27,4.3988]
[1733226334691,2.18,225.39,225.27,4.3988]
[1733226334891,12.49712014,225.38,225.27,4.3988]
[1733226335093,12.49712014,225.38,225.28,2.2187]
[1733226335289,12.49712014,225.38,225.27,2.18]
[1733226335491,12.49712014,225.5,225.28,12.49712014]
[1733226335690,12.49712014,225.45,225.33,2.2182]
[1733226335886,12.49712014,225.42,225.32,2.18]
[1733226336692,12.49712014,225.42,225.33,2.2182]
[1733226336888,12.49712014,225.42,225.32,2.18]
[1733226337388,2.18,225.48,225.34,12.49712014]
[1733226337693,12.49712014,225.5,225.37,12.49712014]
[1733226337995,12.49712014,225.5,225.38,3.5406]
[1733226338586,12.49712014,225.5,225.39,2.2176]
[1733226338890,12.49712014,225.5,225.38,3.5406]
[1733226339096,2.18,225.53,225.38,3.5406]
[1733226339396,12.49712014,225.52,225.38,3.5406]
[1733226339993,12.49712014,225.49,225.41,2.2174]
[1733226340192,12.49712014,225.49,225.38,2.18]
[1733226341397,12.49712014,225.46,225.38,2.18]
[1733226343697,12.49712014,225.46,225.37,4.3778]
[1733226344798,12.49712014,225.49,225.37,14.65712014]
[1733226344990,2.16,225.51,225.37,14.65712014]
[1733226345193,14.65712014,225.52,225.38,1.36]
[1733226345391,14.65712014,225.52,225.4,12.49712014]
[1733226345589,2.16,225.52,225.45,2.2171]
[1733226345792,30.57515807,225.58,225.45,2.2171]
[1733226345793,14.65712014,225.56,225.45,2.2171]
[1733226346593,2.16,225.56,225.45,2.2171]
[1733226346795,14.65712014,225.56,225.46,2.217]
[1733226346993,14.65712014,225.56,225.44,2.16]
[1733226347195,12.49712014,225.59,225.44,2.16]
[1733226347497,46.16,225.62,225.46,12.49712014]
[1733226347498,12.49712014,225.61,225.46,12.49712014]
[1733226347693,12.49712014,225.61,225.47,1.3114]
[1733226347994,12.49712014,225.61,225.52,2.2163]
[1733226348201,2.16,225.62,225.52,4.3763]
[1733226348398,2.16,225.62,225.54,2.2162]
[1733226349102,12.49712014,225.64,225.52,2.16]
[1733226349704,12.49712014,225.64,225.53,2.2162]
[1733226349903,12.49712014,225.64,225.52,2.16]
[1733226350199,2.16,225.66,225.52,4.3764]
[1733226350403,2.16,225.66,225.52,14.65712014]
[1733226350600,14.65712014,225.66,225.52,14.65712014]
[1733226351000,14.65712014,225.66,225.55,2.2161]
[1733226351201,12.49712014,225.66,225.55,2.2161]
[1733226352007,2.16,225.68,225.55,12.49712014]
[1733226352301,46.16,225.76,225.55,12.49712014]
[1733226352302,2.16,225.7,225.56,3.8928]
[1733226352504,2.16,225.71,225.58,12.49712014]
[1733226353399,2.16,225.71,225.6,2.2155]
[1733226353604,2.16,225.71,225.58,12.49712014]
[1733226354001,2.16,225.71,225.62,2.2153]
[1733226354204,2.16,225.71,225.62,4.3753]
[1733226355911,2.16,225.71,225.63,2.2153]
[1733226356100,30.55579402,225.74,225.63,2.2153]
[1733226356305,30.55579402,225.74,225.62,2.16]
[1733226356507,30.55579402,225.74,225.63,2.2153]
[1733226356807,30.55579402,225.74,225.62,2.16]
[1733226357205,30.55579402,225.74,225.63,2.2153]
[1733226357206,12.49712014,225.72,225.63,2.2153]
[1733226357400,12.49712014,225.72,225.62,2.16]
[1733226357808,12.49712014,225.72,225.62,4.3754]
[1733226358003,30.55579402,225.74,225.62,4.3754]
[1733226358208,43.05291416,225.74,225.62,4.3754]
[1733226358806,43.05291416,225.74,225.62,2.16]
[1733226360408,12.49712014,225.68,225.58,2.16]
[1733226360607,12.49712014,225.68,225.56,3.8928]
[1733226361812,12.49712014,225.68,225.56,6.1088]
[1733226362602,12.49712014,225.65,225.56,2.6291]
[1733226362806,2.16,225.64,225.51,2.16]
[1733226363207,2.16,225.64,225.51,4.3765]
[1733226363405,2.16,225.64,225.51,2.16]
[1733226363905,2.16,225.64,225.52,12.49712014]
[1733226364106,12.49712014,225.68,225.53,1.3665]
[1733226364308,12.49712014,225.68,225.57,2.2159]
[1733226364615,2.16,225.69,225.57,2.16]
[1733226365013,12.49712014,225.65,225.53,1.3665]
[1733226365215,2.16,225.64,225.54,2.16]
[1733226365410,12.49712014,225.62,225.5,2.2166]
[1733226365709,2.16,225.64,225.48,2.6216]
[1733226365710,12.49712014,225.59,225.48,2.6216]
[1733226366010,12.49712014,225.56,225.44,1.3624]
[1733226366211,12.49712014,225.56,225.44,3.5224]
[1733226366407,12.49712014,225.56,225.45,1.10942427]
[1733226366604,12.49712014,225.56,225.44,5.7396]
[1733226367005,12.49712014,225.56,225.44,3.5224]
[1733226367206,12.49712014,225.56,225.46,2.217]
[1733226367406,14.65712014,225.59,225.45,15.14422014]
[1733226367812,14.65712014,225.59,225.47,2.2169]
[1733226368013,14.65712014,225.59,225.45,15.14422014]
[1733226368406,14.65712014,225.59,225.46,4.377]
[1733226369706,2.16,225.59,225.46,2.16]
[1733226369917,2.16,225.63,225.48,12.49712014]
[1733226370114,14.65712014,225.64,225.48,12.49712014]
[1733226370413,14.65712014,225.64,225.51,12.49712014]
[1733226370613,14.65712014,225.64,225.52,2.16]
[1733226370614,2.16,225.64,225.52,2.16]
[1733226371213,2.16,225.64,225.53,1.10925639]
[1733226371410,2.16,225.64,225.52,2.16]
[1733226371613,2.16,225.64,225.53,1.10921292]
[1733226371807,2.16,225.64,225.52,2.16]
[1733226372010,2.16,225.64,225.53,1.10921522]
[1733226372212,2.16,225.64,225.52,2.16]
[1733226372417,12.49712014,225.67,225.54,12.49712014]
[1733226372718,2.16,225.68,225.57,2.2159]
[1733226372921,2.16,225.68,225.57,2.16]
[1733226374919,2.16,225.68,225.59,2.2157]
[1733226375423,2.16,225.68,225.57,2.16]
[1733226375827,2.16,225.68,225.58,1.10902959]
[1733226376121,2.16,225.68,225.6,2.2156]
[1733226376328,2.16,225.68,225.57,2.16]
[1733226376521,2.16,225.68,225.58,1.10902547]
[1733226376720,12.49712014,225.7,225.59,2.2157]
[1733226377829,12.49712014,225.7,225.57,2.16]
[1733226378122,12.49712014,225.67,225.57,2.16]
[1733226378328,12.49712014,225.7,225.57,2.16]
[1733226378724,2.16,225.73,225.57,14.65712014]
[1733226378923,2.16,225.73,225.61,2.2155]
[1733226378924,12.49712014,225.72,225.61,2.2155]
[1733226379324,12.49712014,225.72,225.57,14.65712014]
[1733226379619,2.16,225.73,225.6,12.49712014]
[1733226379829,12.49712014,225.75,225.61,1.10911451]
[1733226380029,14.65712014,225.75,225.62,3.26911451]
[1733226380329,2.16,225.76,225.63,13.60623465]
[1733226380528,2.16,225.77,225.64,4.17745077]
[1733226380826,2.16,225.77,225.65,2.88325077]
[1733226381026,2.16,225.77,225.66,2.88325077]
[1733226381217,2.16,225.77,225.67,3.32411451]
[1733226381418,2.16,225.77,225.68,1.10911451]
[1733226381720,2.16,225.77,225.69,1.10911451]
[1733226381924,2.16,225.77,225.67,2.215]
[1733226382121,2.16,225.77,225.68,1.10880036]
[1733226382326,2.16,225.77,225.69,1.10880036]
[1733226382527,2.16,225.77,225.67,2.215]
[1733226382729,2.16,225.77,225.68,1.10881927]
[1733226383029,2.16,225.77,225.69,1.10881927]
[1733226383334,2.16,225.77,225.65,2.2151]
[1733226383526,2.16,225.77,225.66,2.88303624]
[1733226383731,2.16,225.77,225.67,2.88303624]
[1733226383932,2.16,225.77,225.64,2.6432]
[1733226383933,12.49712014,225.75,225.68,1.10886009]
[1733226384133,12.49712014,225.75,225.64,2.6432]
[1733226384329,12.49712014,225.75,225.65,2.88313489]
[1733226384532,12.49712014,225.75,225.66,1.10889803]
[1733226384729,12.49712014,225.75,225.61,2.16]
[1733226384925,12.49712014,225.75,225.62,5.10118718]
[1733226385130,12.49712014,225.75,225.63,2.88327971]
[1733226385324,12.49712014,225.75,225.64,2.88327971]
[1733226385524,12.49712014,225.75,225.65,1.10895373]
[1733226385729,12.49712014,225.72,225.61,2.16]
[1733226385925,2.16,225.71,225.62,2.88339842]
[1733226386133,2.16,225.71,225.63,2.88339842]
[1733226386334,2.16,225.71,225.64,1.10899939]
[1733226386534,2.16,225.71,225.61,2.16]
[1733226386731,2.16,225.71,225.62,2.88346461]
[1733226387033,2.16,225.71,225.63,2.88346255]
[1733226387233,2.16,225.71,225.64,1.10902485]
[1733226387435,2.16,225.71,225.65,1.10902485]
[1733226387632,2.16,225.71,225.61,2.16]
[1733226387829,2.16,225.71,225.62,2.88334336]
[1733226388029,2.16,225.71,225.63,5.09874336]
[1733226388332,2.16,225.71,225.64,1.10897821]
[1733226388534,2.16,225.71,225.65,1.10895733]
[1733226388726,14.65712014,225.75,225.65,1.10895733]
[1733226388927,14.65712014,225.75,225.61,2.16]
[1733226389135,14.65712014,225.75,225.62,5.10104553]
[1733226389332,14.65712014,225.75,225.64,2.2153]
[1733226389634,14.65712014,225.75,225.61,2.16]
[1733226389934,14.65712014,225.75,225.62,2.88315734]
[1733226390135,14.65712014,225.75,225.63,15.38027748]
[1733226390333,14.65712014,225.75,225.64,1.10890667]
[1733226390535,14.65712014,225.75,225.65,1.10890667]
[1733226390727,14.65712014,225.75,225.66,1.10890667]
[1733226391034,14.65712014,225.75,225.63,12.49712014]
[1733226391235,14.65712014,225.75,225.64,1.10883147]
[1733226391431,14.65712014,225.75,225.65,1.10883147]
[1733226391635,14.65712014,225.75,225.63,12.49712014]
[1733226391831,14.65712014,225.75,225.65,2.2151]
[1733226392136,14.65712014,225.75,225.61,2.16]
[1733226392437,14.65712014,225.75,225.62,1.10893949]
[1733226392732,12.49712014,225.72,225.58,2.16]
[1733226392934,12.49712014,225.72,225.59,1.10903436]
[1733226393231,12.49712014,225.72,225.58,2.16]
[1733226393737,12.49712014,225.72,225.58,4.3758]
[1733226395937,12.49712014,225.72,225.58,2.16]
[1733226396733,12.49712014,225.72,225.58,4.3758]
[1733226396931,12.49712014,225.72,225.58,2.16]
[1733226397133,2.16,225.72,225.6,12.49712014]
[1733226397539,2.16,225.72,225.62,2.2155]
[1733226398741,2.16,225.72,225.61,2.2156]
[1733226399337,12.49712014,225.71,225.58,4.3758]
[1733226399532,12.49712014,225.71,225.58,2.16]
[1733226399941,12.49712014,225.71,225.58,4.3758]
[1733226400237,12.49712014,225.71,225.58,2.16]
[1733226400539,12.49712014,225.71,225.6,2.2156]
[1733226402438,12.49712014,225.71,225.58,2.16]
[1733226402647,2.16,225.72,225.6,12.49712014]
[1733226403943,2.16,225.72,225.62,2.2154]
[1733226404942,2.16,225.72,225.61,2.2155]
[1733226405639,7.97140961,225.69,225.61,10.18690961]
[1733226406347,7.97140961,225.69,225.63,7.97140961]
[1733226406743,7.97140961,225.71,225.63,7.97140961]
[1733226406947,7.97140961,225.71,225.63,10.18680961]
[1733226407151,7.97140961,225.71,225.63,7.97140961]
[1733226412745,2.16,225.72,225.62,2.2154]
[1733226412746,7.97140961,225.69,225.62,2.2154]
[1733226413046,7.97140961,225.67,225.58,10.13140961]
[1733226413352,7.97140961,225.65,225.58,10.13140961]
[1733226413542,7.97140961,225.63,225.56,10.53150961]
[1733226413943,7.97140961,225.61,225.56,2.5601]
[1733226414147,7.97140961,225.61,225.53,7.97140961]
[1733226414448,7.97140961,225.59,225.51,2.16]
[1733226414649,7.97140961,225.57,225.5,7.97140961]
[1733226415553,7.97140961,225.57,225.49,6.3247]
[1733226415848,7.97140961,225.55,225.49,4.1647]
[1733226417353,7.97140961,225.55,225.48,7.97140961]
[1733226417549,7.97140961,225.53,225.47,2.16]
[1733226417851,7.97140961,225.51,225.44,7.97140961]
[1733226418147,7.97140961,225.51,225.42,10.13140961]
[1733226418753,7.97140961,225.51,225.44,7.97140961]
[1733226418947,7.97140961,225.51,225.42,10.13140961]
[1733226419142,7.97140961,225.49,225.42,10.13140961]
[1733226419355,7.97140961,225.49,225.42,7.97140961]
[1733226419556,14.6391906,225.51,225.4,4.0444]
[1733226419852,2.16,225.5,225.4,4.0444]
[1733226420552,2.16,225.5,225.4,6.262]
[1733226421347,2.16,225.5,225.42,2.2174]
[1733226421546,2.16,225.5,225.4,4.0444]
[1733226422046,2.16,225.5,225.41,2.2175]
[1733226422555,2.16,225.5,225.4,4.0444]
[1733226423351,2.16,225.5,225.4,2.7599]
[1733226423555,12.4791906,225.48,225.37,2.16]
[1733226423955,12.4791906,225.48,225.34,1.3499]
[1733226424453,2.16,225.5,225.36,12.4791906]
[1733226424659,2.16,225.53,225.39,12.4791906]
[1733226424861,30.5812444,225.54,225.42,2.2174]
[1733226424862,43.060435,225.54,225.42,2.2174]
[1733226425152,45.220435,225.54,225.4,4.8702]
[1733226425554,45.220435,225.54,225.44,2.2172]
[1733226425755,45.220435,225.54,225.45,14.6391906]
[1733226425756,30.5812444,225.54,225.45,14.6391906]
[1733226426358,30.5812444,225.54,225.46,1.3324]
[1733226426954,2.16,225.6,225.48,12.4791906]
[1733226427259,2.16,225.6,225.49,1.3211]
[1733226427453,2.16,225.6,225.5,2.16]
[1733226427654,2.16,225.64,225.51,12.4791906]
[1733226428654,2.16,225.64,225.54,12.4791906]
[1733226428854,2.16,225.64,225.55,2.16]
[1733226430359,2.24525906,225.78,225.56,2.216]
[1733226430553,2.16,225.76,225.57,12.4791906]
[1733226430754,12.4791906,225.73,225.57,12.4791906]
[1733226431563,12.4791906,225.73,225.61,2.2155]
[1733226431757,12.4791906,225.73,225.6,2.16]
[1733226431964,12.4791906,225.73,225.61,2.6379]
[1733226432661,2.24057925,225.84,225.66,12.4791906]
[1733226432862,12.4791906,225.82,225.67,2.16]
[1733226433166,12.4791906,225.79,225.67,2.16]
[1733226433958,12.4791906,225.76,225.61,15.1170906]
[1733226434266,14.6391906,225.76,225.62,2.16]
[1733226434870,12.4791906,225.73,225.61,15.1170906]
[1733226435163,12.4791906,225.73,225.62,2.16]
[1733226435865,12.4791906,225.73,225.62,4.3755]
[1733226437066,12.4791906,225.73,225.61,2.6379]
[1733226437369,12.4791906,225.73,225.61,4.7979]
[1733226437768,12.4791906,225.73,225.61,7.0135]
[1733226437968,12.4791906,225.7,225.56,1.3238]
[1733226438166,12.4791906,225.67,225.56,1.3238]
[1733226438365,2.16,225.7,225.54,2.16]
[1733226438366,12.4791906,225.64,225.54,2.16]
[1733226438567,12.4791906,225.64,225.53,2.16]
[1733226441973,12.4791906,225.64,225.51,4.8091]
[1733226443367,12.4791906,225.64,225.51,7.0256]
[1733226443969,12.4791906,225.64,225.52,2.2164]
[1733226444170,12.4791906,225.64,225.51,17.2882906]
[1733226444571,12.4791906,225.64,225.52,2.2164]
[1733226444769,12.4791906,225.64,225.51,17.2882906]
[1733226445074,12.4791906,225.64,225.51,19.5047906]
[1733226445270,12.4791906,225.64,225.51,4.8091]
[1733226445671,12.4791906,225.61,225.51,4.8091]
[1733226445873,12.4791906,225.61,225.51,2.16]
[1733226446176,12.4791906,225.58,225.47,1.3518]
[1733226446373,2.16,225.57,225.47,1.3518]
[1733226446570,2.16,225.57,225.45,4.377]
[1733226447076,14.6391906,225.58,225.47,2.2169]
[1733226447278,14.6391906,225.58,225.45,14.6391906]
[1733226448873,14.6391906,225.58,225.45,16.8562906]
[1733226450781,14.6391906,225.58,225.46,2.217]
[1733226450980,2.16,225.58,225.45,14.6391906]
[1733226451372,2.16,225.58,225.48,12.4791906]
[1733226451576,12.4791906,225.61,225.48,12.4791906]
[1733226451872,2.16,225.62,225.5,2.2166]
[1733226452181,2.16,225.62,225.51,17.2916906]
[1733226452376,2.16,225.66,225.52,2.16]
[1733226452683,14.6391906,225.67,225.54,12.4791906]
[1733226453875,14.6391906,225.67,225.55,2.216]
[1733226454074,14.6391906,225.67,225.53,1.2999]
[1733226454277,12.4791906,225.64,225.53,1.2999]
[1733226455580,12.4791906,225.64,225.52,2.16]
[1733226455775,12.4791906,225.64,225.51,2.6525]
[1733226455980,12.4791906,225.61,225.51,2.6525]
[1733226456177,14.6391906,225.61,225.51,2.6525]
[1733226456575,14.6391906,225.61,225.49,2.16]
[1733226456576,12.4791906,225.58,225.49,2.16]
[1733226456781,12.4791906,225.58,225.44,4.0708]
[1733226456982,12.4791906,225.55,225.44,4.0708]
[1733226457184,14.6391906,225.55,225.44,4.0708]
[1733226458980,14.6391906,225.55,225.44,2.6777]
[1733226460986,14.6391906,225.55,225.43,59.81951632]
[1733226461287,14.6391906,225.55,225.43,57.65951632]
[1733226461288,12.4791906,225.52,225.43,57.65951632]
[1733226462288,12.4791906,225.52,225.41,2.16]
[1733226462492,12.4791906,225.49,225.39,2.16]
[1733226462786,12.4791906,225.46,225.35,2.16]
[1733226462993,12.4791906,225.46,225.34,4.853]
[1733226463388,12.4791906,225.46,225.34,7.0711]
[1733226463682,12.4791906,225.46,225.34,4.853]
[1733226463992,2.16,225.47,225.34,17.3321906]